bitfinex-derivatives/quotes_ETHF0:USTF0_20260131
["timestamp","ask_amount","ask_price","bid_price","bid_amount"]
[1769879427400,0.56294303,2450.4,2447.9,3.87135839]
[1769879427598,5.2492727,2450.4,2447.9,3.87135839]
[1769879427800,0.56294303,2451.0,2448.6,4.07588839]
[1769879428296,3.71790095,2450.9,2448.8,3.87135839]
[1769879428498,0.57660461,2452.2,2449.9,3.87135839]
[1769879428792,0.57660461,2452.2,2448.8,0.20783356]
[1769879428793,0.57660461,2451.0,2448.8,0.00332356]
[1769879428993,0.57328105,2450.3,2447.5,3.87135839]
[1769879429198,0.57328105,2448.7,2446.2,3.87135839]
[1769879429399,0.57328105,2449.1,2446.2,3.87135839]
[1769879429701,3.43396852,2448.6,2446.5,3.87135839]
[1769879429896,0.00421847,2448.6,2446.5,4.08100765]
[1769879430398,4.62756927,2448.5,2447.1,3.87135839]
[1769879430599,0.52496119,2449.7,2447.1,3.87135839]
[1769879430793,0.52496119,2450.3,2447.6,3.87135839]
[1769879431000,4.62756927,2449.6,2447.6,3.87135839]
[1769879431189,0.52496119,2449.6,2447.6,3.87135839]
[1769879431394,0.52496119,2449.5,2447.0,3.87135839]
[1769879431594,0.72951119,2448.4,2446.5,0.00493926]
[1769879431799,0.20456,2448.3,2446.5,0.00493926]
[1769879431998,1.04805017,2448.3,2446.5,3.87629765]
[1769879432194,0.28647653,2448.5,2446.5,3.87629765]
[1769879432492,0.28647653,2448.3,2446.5,0.00493926]
[1769879432692,0.28647653,2447.8,2445.8,3.90505748]
[1769879432893,0.49112653,2447.3,2445.2,3.90505748]
[1769879433090,4.56241866,2447.7,2445.9,0.20475]
[1769879433295,2.41517665,2451.3,2446.0,3.90505748]
[1769879433296,3.42301073,2448.3,2446.0,3.90505748]
[1769879433494,4.62118101,2447.2,2446.0,3.90505748]
[1769879433697,0.29063881,2447.2,2441.8,3.90505748]
[1769879433892,0.29063881,2447.2,2441.7,4.00756748]
[1769879433893,0.08145653,2444.7,2441.7,4.00756748]
[1769879434200,2.59970847,2446.4,2441.8,4.00965776]
[1769879434201,4.62118101,2444.6,2441.8,4.00965776]
[1769879434398,0.07727598,2444.5,2441.8,4.00965776]
[1769879434598,0.07727598,2444.4,2441.8,4.00965776]
[1769879434802,0.07727598,2444.3,2441.8,4.01426634]
[1769879435206,0.07727598,2443.6,2441.8,0.00460858]
[1769879435498,3.675,2444.3,2439.4,4.00965776]
[1769879435499,0.07727598,2442.4,2439.4,4.00965776]
[1769879435698,4.34637924,2443.5,2441.4,4.00965776]
[1769879435899,3.676,2445.8,2441.4,4.00965776]
[1769879435900,0.07727598,2444.1,2441.4,4.00965776]
[1769879436098,0.07727598,2443.1,2440.3,3.676]
[1769879436298,4.34637924,2444.0,2441.8,4.04829575]
[1769879436497,2.93501493,2444.0,2442.6,4.04829575]
[1769879436801,3.677,2444.6,2441.4,4.05628122]
[1769879437001,3.677,2444.5,2441.4,4.05628122]
[1769879437202,3.677,2444.5,2440.4,4.05628122]
[1769879437203,0.20495,2443.6,2440.4,4.05628122]
[1769879437404,0.00422271,2443.6,2440.4,4.06145082]
[1769879437623,4.34441974,2443.5,2440.4,0.0051696]
[1769879437802,4.34441974,2443.5,2437.8,4.05628122]
[1769879437803,0.20512,2441.6,2437.8,4.05628122]
[1769879437998,2.59970847,2442.6,2437.8,4.05628122]
[1769879437999,0.20518,2440.9,2437.8,4.05628122]
[1769879438200,7.72760974,2441.5,2438.0,4.05628122]
[1769879438407,0.14118997,2440.8,2438.5,4.05628122]
[1769879438605,3.88302,2442.8,2438.0,3.678]
[1769879438606,3.678,2442.8,2439.3,4.05628122]
[1769879438810,4.5472066,2441.5,2439.3,4.05628122]
[1769879439105,0.20511,2441.7,2439.3,4.05628122]
[1769879439301,4.5472066,2441.4,2440.3,4.05628122]
[1769879439505,0.00385063,2442.8,2440.3,4.05628122]
[1769879439506,4.55156653,2441.6,2440.3,4.06046339]
[1769879439701,4.55156653,2442.5,2440.3,4.06046339]
[1769879439899,0.00385063,2442.8,2440.8,4.05628122]
[1769879440099,0.00385063,2442.8,2441.7,4.05628122]
[1769879440304,4.55156653,2442.7,2440.6,4.05628122]
[1769879440508,0.00385063,2442.8,2440.9,4.05628122]
[1769879440706,0.00385063,2442.8,2436.5,0.20554]
[1769879440707,4.66570535,2442.7,2436.5,4.05628122]
[1769879440907,0.20521,2440.6,2436.3,2.59970847]
[1769879441205,0.20513,2441.5,2436.3,2.59970847]
[1769879441206,0.20534,2439.0,2436.4,4.05628122]
[1769879441400,0.20533,2439.2,2435.6,0.55905722]
[1769879441604,4.30752442,2438.9,2435.8,4.0563504]
[1769879441801,0.20538,2438.5,2435.8,4.05951097]
[1769879442007,0.00415166,2438.9,2436.3,4.0563504]
[1769879442199,0.00415166,2438.9,2436.9,4.0563504]
[1769879442400,4.30752442,2438.4,2436.2,4.0563504]
[1769879442598,0.00415166,2438.9,2436.2,4.0563504]
[1769879442799,0.00415166,2438.9,2436.8,4.0563504]
[1769879443000,4.50094029,2438.3,2436.8,4.0563504]
[1769879443208,4.50094029,2438.8,2436.8,4.0563504]
[1769879443399,0.00415166,2438.9,2437.1,4.0563504]
[1769879443604,0.00415166,2438.9,2437.3,4.0563504]
[1769879444004,0.00415166,2438.9,2435.8,3.68416057]
[1769879444005,4.40826481,2438.8,2435.8,0.00316057]
[1769879444200,0.20538,2438.5,2435.9,4.0563504]
[1769879444509,4.6123282,2438.4,2435.9,4.0563504]
[1769879444710,4.6123282,2438.4,2433.9,0.20576]
[1769879444711,0.20545,2437.7,2433.9,0.20576]
[1769879444911,0.20538,2438.5,2432.7,3.684]
[1769879444912,0.20546,2437.6,2433.6,4.06045953]
[1769879445107,4.13282808,2437.6,2434.4,4.0563504]
[1769879445305,4.6123282,2438.3,2436.7,3.92206455]
[1769879445608,3.62681738,2441.6,2437.5,4.48428234]
[1769879445805,3.62681738,2441.6,2437.6,3.92206455]
[1769879446003,0.79429589,2442.5,2436.5,3.685]
[1769879446004,4.68004817,2440.6,2438.7,2.59970847]
[1769879446207,3.68542229,2442.2,2439.0,3.92206455]
[1769879446402,3.68542229,2442.2,2439.4,3.92206455]
[1769879446607,0.00527085,2442.2,2440.6,3.92206455]
[1769879446806,0.00527085,2442.2,2441.4,3.92206455]
[1769879447111,3.68542229,2443.8,2440.8,3.92206455]
[1769879447409,2.59970847,2445.6,2439.4,0.2053]
[1769879447410,4.75033473,2443.7,2441.6,3.92206455]
[1769879447612,3.80228595,2445.1,2442.5,3.92206455]
[1769879447912,3.686,2446.4,2441.4,0.20513]
[1769879447913,3.80228595,2445.4,2442.9,3.92206455]
[1769879448112,3.80228595,2445.4,2442.3,3.92206455]
[1769879448312,3.80228595,2444.9,2442.8,3.92206455]
[1769879448613,3.80228595,2446.1,2443.5,3.92206455]
[1769879448806,4.2746839,2446.2,2444.8,2.59970847]
[1769879449003,3.80228595,2447.2,2444.9,3.92206455]
[1769879449207,0.00499309,2447.2,2444.9,3.92730067]
[1769879449405,29.577,2450.9,2444.9,3.92730067]
[1769879449406,3.80228595,2449.3,2446.3,3.92206455]
[1769879449711,3.80228595,2450.6,2448.0,3.92206455]
[1769879450210,3.80228595,2448.4,2445.8,6.52177302]
[1769879450410,3.805782,2448.4,2445.9,3.92206455]
[1769879450608,3.80228595,2448.2,2445.8,0.00433987]
[1769879450810,3.80228595,2447.7,2445.8,0.00433987]
[1769879451109,3.80228595,2446.5,2444.6,2.59970847]
[1769879451307,3.80228595,2447.5,2444.7,3.92206455]
[1769879451508,2.31968083,2446.4,2444.2,2.59970847]
[1769879451811,3.80228595,2447.7,2445.3,3.92206455]
[1769879452011,3.80228595,2450.3,2446.1,3.92206455]
[1769879452309,3.80228595,2449.4,2446.2,3.92206455]
[1769879452707,3.80228595,2448.1,2446.0,2.59970847]
[1769879452907,6.28370847,2450.4,2445.2,0.00530935]
[1769879452908,3.80228595,2447.1,2445.2,0.00530935]
[1769879453108,3.80228595,2447.1,2443.6,2.401]
[1769879453109,3.80228595,2447.1,2444.5,6.52177302]
[1769879453307,0.20458,2448.1,2444.5,3.92206455]
[1769879453308,3.80228595,2446.9,2444.5,3.92206455]
[1769879453510,3.80228595,2446.6,2444.5,3.92206455]
[1769879453705,1.01123328,2446.8,2444.6,3.92206455]
[1769879453909,3.80228595,2448.5,2445.4,3.92206455]
[1769879454114,3.80228595,2448.4,2445.4,3.92206455]
[1769879454307,3.80228595,2448.0,2445.4,3.92600378]
[1769879455009,3.14274349,2447.9,2445.4,3.92600378]
[1769879455320,3.80228595,2448.3,2445.4,3.92600378]
[1769879455608,0.00454404,2448.4,2445.7,3.92206455]
[1769879456114,3.80228595,2451.1,2447.4,3.92206455]
[1769879456318,3.80228595,2451.1,2447.9,3.92206455]
[1769879456618,3.80228595,2450.3,2447.9,3.92206455]
[1769879456913,3.80528619,2450.3,2447.9,3.92510246]
[1769879457213,3.80228595,2450.2,2447.9,3.92510246]
[1769879457414,3.80228595,2448.8,2446.7,3.92206455]
[1769879457714,3.80228595,2448.6,2445.7,6.52177302]
[1769879457913,0.36715807,2448.7,2444.4,3.92206455]
[1769879457914,3.80228595,2448.2,2444.4,3.92206455]
[1769879458119,3.80228595,2447.9,2444.4,3.92206455]
[1769879458411,3.80228595,2447.7,2444.4,0.00414301]
[1769879458619,3.80228595,2447.1,2444.4,3.92620756]
[1769879458815,3.80228595,2447.0,2444.4,0.00414301]
[1769879459013,3.80228595,2445.5,2442.7,3.92206455]
[1769879459517,0.20464,2447.3,2442.7,3.92206455]
[1769879459518,4.41392783,2445.4,2442.7,3.92206455]
[1769879459722,3.80228595,2447.8,2443.5,3.92206455]
[1769879459918,3.80228595,2446.9,2443.7,3.92206455]
[1769879460121,4.32191856,2447.2,2444.4,3.92206455]
[1769879460420,0.0030899,2447.8,2444.3,2.59970847]
[1769879460421,0.0030899,2447.8,2446.0,3.92206455]
[1769879460620,3.80228595,2449.3,2446.8,3.92206455]
[1769879460917,3.80228595,2449.3,2446.7,2.59970847]
[1769879460918,0.29639614,2450.4,2447.6,3.92206455]
[1769879461114,0.29639614,2450.4,2447.8,3.92206455]
[1769879461318,3.80228595,2451.1,2448.4,3.92206455]
[1769879461516,0.20402,2454.7,2449.2,3.92206455]
[1769879461517,3.80228595,2453.3,2449.2,3.92206455]
[1769879461717,3.80228595,2452.7,2450.0,3.92206455]
[1769879462111,3.80228595,2452.4,2450.0,3.92206455]
[1769879462309,3.80228595,2452.4,2449.7,3.681]
[1769879462509,3.80228595,2452.0,2449.7,3.681]
[1769879462716,2.54892483,2451.9,2449.4,3.92206455]
[1769879462910,2.60371552,2453.3,2445.5,4.059]
[1769879462911,3.80228595,2449.4,2445.5,4.059]
[1769879463117,3.80228595,2449.4,2442.1,14.0135807]
[1769879463118,3.80228595,2447.4,2443.0,0.20499]
[1769879463316,3.80228595,2446.3,2441.7,0.2051]
[1769879463516,3.80228595,2445.9,2442.2,0.20506]
[1769879463713,3.80228595,2445.9,2441.9,2.59970847]
[1769879463918,3.80228595,2445.3,2441.9,2.60407031]
[1769879464120,3.80228595,2444.3,2442.0,6.701]
[1769879464327,0.0037428,2445.9,2442.1,2.59970847]
[1769879464521,3.88458,2448.0,2441.9,0.00436184]
[1769879464522,3.80228595,2448.2,2443.8,2.80463847]
[1769879464719,3.80228595,2448.2,2444.7,2.59970847]
[1769879465022,3.80228595,2448.0,2445.6,3.92206455]
[1769879465420,3.80228595,2448.9,2445.6,3.92494241]
[1769879465617,3.80228595,2447.8,2445.6,3.92494241]
[1769879465819,3.80733974,2447.8,2445.6,3.92494241]
[1769879466020,0.00505379,2447.8,2445.6,3.92494241]
[1769879466218,3.80228595,2447.0,2445.6,0.00287786]
[1769879466413,3.80228595,2445.6,2443.1,3.92206455]
[1769879466615,3.80228595,2445.2,2442.1,3.92206455]
[1769879466816,3.98912788,2444.7,2440.7,3.92206455]
[1769879467017,0.20483,2445.1,2440.2,3.68]
[1769879467018,3.98912788,2443.4,2440.2,3.68]
[1769879467223,3.98912788,2442.7,2439.6,3.66493663]
[1769879467522,3.98912788,2442.5,2439.6,3.66980289]
[1769879467714,3.98912788,2442.4,2439.6,3.66980289]
[1769879467922,3.98912788,2441.2,2439.6,0.00486626]
[1769879468123,3.98912788,2442.0,2439.6,3.66980289]
[1769879468317,3.98912788,2441.8,2439.6,0.00486626]
[1769879468525,3.98912788,2442.6,2440.3,6.2646451]
[1769879468720,0.00330354,2442.7,2440.4,3.66493663]
[1769879468918,3.98912788,2444.0,2441.2,3.66493663]
[1769879469122,3.98912788,2444.0,2440.3,2.59970847]
[1769879469123,3.98912788,2445.3,2442.9,3.66493663]
[1769879469528,3.98912788,2444.2,2442.0,2.59970847]
[1769879469821,3.98912788,2444.0,2441.3,3.681]
[1769879470026,3.98912788,2443.0,2440.1,3.66493663]
[1769879470224,3.98912788,2442.8,2439.6,7.34693663]
[1769879470426,3.98912788,2441.6,2438.5,2.59970847]
[1769879470624,0.20503,2442.7,2438.2,3.682]
[1769879470625,3.98912788,2441.3,2438.2,3.682]
[1769879471028,3.98912788,2439.8,2438.2,0.00334669]
[1769879471219,3.98912788,2439.0,2435.9,2.59970847]
[1769879471422,2.34466483,2438.9,2435.1,2.59970847]
[1769879471626,2.34466483,2438.9,2431.3,0.20598]
[1769879471627,3.98912788,2437.9,2433.5,3.66493663]
[1769879471825,3.98912788,2437.2,2433.7,2.59970847]
[1769879472028,3.98912788,2436.6,2433.0,0.0008]
[1769879472225,3.98912788,2435.2,2433.0,0.0008]
[1769879472430,3.98912788,2434.4,2431.4,2.59970847]
[1769879472623,3.98912788,2433.8,2430.3,2.59970847]
[1769879472930,0.20566,2435.0,2429.6,2.59970847]
[1769879472931,3.98912788,2432.0,2429.6,2.59970847]
[1769879473127,3.98912788,2432.0,2429.2,2.59970847]
[1769879473320,3.98912788,2430.7,2428.9,0.00369329]
[1769879473523,3.98912788,2430.5,2428.9,0.00369329]
[1769879473721,0.00468963,2432.0,2429.7,3.66493663]
[1769879473921,3.685,2434.6,2429.7,3.66493663]
[1769879473922,3.98912788,2434.3,2429.7,3.66493663]
[1769879474121,3.98912788,2433.5,2429.7,3.66493663]
[1769879474326,4.49144786,2431.9,2429.7,3.66493663]
[1769879474524,3.98912788,2434.4,2429.9,3.66493663]
[1769879474728,0.20553,2436.4,2428.9,3.68969329]
[1769879474729,3.98912788,2435.9,2432.3,3.66493663]
[1769879474932,3.98912788,2435.9,2432.4,3.66493663]
[1769879475128,4.60664699,2435.6,2432.4,3.66493663]
[1769879475333,4.60664699,2435.6,2432.4,3.66994455]
[1769879475334,0.00333692,2435.6,2432.4,3.66994455]
[1769879475536,0.00333692,2435.6,2433.6,3.66493663]
[1769879475835,3.98912788,2437.1,2433.6,3.66493663]
[1769879476024,3.98912788,2437.1,2432.7,2.59970847]
[1769879476025,3.98912788,2436.3,2432.8,3.66493663]
[1769879476232,3.98912788,2435.4,2432.4,0.00500792]
[1769879476532,3.98912788,2437.1,2433.7,3.66493663]
[1769879476831,3.98912788,2436.5,2433.7,3.66493663]
[1769879477029,4.71661651,2436.6,2433.8,2.59970847]
[1769879477224,0.00472937,2437.1,2433.8,2.59970847]
[1769879477225,0.00472937,2437.1,2433.9,3.66493663]
[1769879477426,0.00472937,2437.1,2434.7,3.66493663]
[1769879477627,0.00472937,2437.1,2435.3,3.66493663]
[1769879478132,3.98912788,2435.8,2433.4,2.59970847]
[1769879478326,3.98912788,2435.8,2433.1,3.66493663]
[1769879478327,3.98912788,2436.6,2433.6,3.66493663]
[1769879478534,3.98912788,2438.9,2435.2,3.66493663]
[1769879478827,0.00472597,2439.2,2436.8,3.66493663]
[1769879479032,3.691,2441.4,2437.6,3.66493663]
[1769879479033,3.98912788,2440.7,2437.6,3.66493663]
[1769879479227,3.98912788,2440.7,2438.3,2.59970847]
[1769879479441,3.98912788,2440.5,2438.2,3.66493663]
[1769879479735,3.98912788,2438.2,2435.9,2.59970847]
[1769879479932,3.691,2439.4,2436.9,3.66493663]
[1769879480126,3.98912788,2440.3,2437.1,3.66493663]
[1769879480333,4.39271521,2440.5,2437.8,3.66493663]
[1769879480629,4.39271521,2440.3,2437.8,3.66493663]
[1769879480829,3.997563,2440.5,2438.3,2.59970847]
[1769879481034,3.98912788,2440.1,2437.8,0.00465083]
[1769879481232,0.00472597,2440.0,2437.8,3.66958746]
[1769879481434,3.98912788,2439.6,2437.8,0.00465083]
[1769879481631,3.98912788,2439.3,2437.8,8.3e-07]
[1769879481932,3.98912788,2437.9,2435.3,3.66493663]
[1769879482232,0.00472597,2437.9,2436.1,3.66493663]
[1769879482431,3.98912788,2438.6,2436.1,3.66493663]
[1769879482626,3.98912788,2438.5,2435.4,3.66493663]
[1769879482831,3.98912788,2438.4,2436.1,3.66493663]
[1769879483031,3.99385385,2438.4,2435.4,3.67010095]
[1769879483231,3.98912788,2438.2,2435.4,0.00516432]
[1769879483434,4.58736901,2438.3,2435.4,0.00516432]
[1769879483435,3.98912788,2437.4,2435.4,0.00516432]
[1769879483641,3.691,2438.1,2433.6,2.59970847]
[1769879483642,3.98912788,2436.5,2433.6,2.59970847]
[1769879483932,3.98912788,2437.2,2434.5,2.59970847]
[1769879484134,3.98912788,2436.3,2433.6,2.59970847]
[1769879484335,3.98912788,2434.8,2431.5,3.692]
[1769879484530,3.98912788,2434.6,2431.8,2.59970847]
[1769879484731,0.20561,2435.5,2431.8,2.59970847]
[1769879484732,3.98912788,2434.3,2431.9,3.66493663]
[1769879484934,4.4977282,2434.7,2432.5,0.25504364]
[1769879485236,3.98912788,2437.3,2433.8,3.66493663]
[1769879485534,3.98912788,2437.2,2434.2,3.66493663]
[1769879485834,4.30616876,2437.3,2435.5,0.25504364]
[1769879485835,0.00472597,2437.3,2435.5,0.25504364]
[1769879486028,0.00472597,2437.3,2435.0,3.66493663]
[1769879486232,4.30144279,2437.1,2436.2,0.25504364]
[1769879486433,3.98912788,2438.0,2435.9,2.59970847]
[1769879486731,3.98912788,2439.0,2436.0,3.66493663]
[1769879486936,3.98912788,2439.0,2436.6,2.59970847]
[1769879487133,3.693,2440.3,2437.6,3.66493663]
[1769879487134,2.77023258,2438.9,2437.6,3.66493663]
[1769879487332,3.98912788,2441.7,2438.8,1.76711064]
[1769879487538,0.00472597,2442.3,2439.5,4.36681911]
[1769879487738,3.99385385,2442.3,2439.5,2.59970847]
[1769879487935,3.98912788,2442.1,2439.5,2.59970847]
[1769879488139,0.00472597,2442.3,2440.3,2.59970847]
[1769879488335,0.00472597,2442.1,2440.5,2.59970847]
[1769879488635,0.00472597,2442.1,2440.3,0.00393811]
[1769879488834,3.99385385,2442.1,2440.3,0.00393811]
[1769879489040,3.98912788,2440.8,2438.6,2.59970847]
[1769879489235,3.98912788,2439.8,2437.8,3.692]
[1769879489437,3.98912788,2439.8,2437.7,2.59970847]
[1769879489636,3.98912788,2439.6,2437.7,2.59970847]
[1769879489836,3.98912788,2439.2,2436.9,2.59970847]
[1769879490037,3.98912788,2439.0,2436.9,0.00412602]
[1769879490237,3.98912788,2439.0,2436.9,2.60383449]
[1769879490438,3.98912788,2438.8,2436.9,0.00412602]
[1769879490638,0.00316984,2439.2,2436.9,0.00412602]
[1769879490639,0.00316984,2439.2,2437.8,2.59970847]
[1769879490839,0.00316984,2439.2,2436.9,0.00412602]
[1769879490840,3.99702369,2439.2,2436.9,0.00412602]
[1769879491036,3.98912788,2439.0,2436.9,0.00412602]
[1769879491238,3.98912788,2439.1,2436.9,0.00412602]
[1769879491438,0.00316984,2439.2,2438.5,2.59970847]
[1769879491631,3.98912788,2439.9,2437.7,2.59970847]
[1769879491831,0.00472597,2439.9,2437.7,2.59970847]
[1769879492032,3.98912788,2439.7,2437.0,2.59970847]
[1769879492337,3.98912788,2438.8,2436.9,0.00412602]
[1769879492530,0.0087997,2438.8,2436.9,0.00412602]
[1769879492730,1.93971597,2439.7,2437.8,4.49324724]
[1769879492937,3.98912788,2442.7,2439.4,4.49324724]
[1769879493136,3.98912788,2442.6,2439.4,4.49324724]
[1769879493332,3.98912788,2441.3,2438.9,3.692]
[1769879493533,3.98912788,2441.3,2438.6,4.49324724]
[1769879493832,3.98912788,2435.4,2431.6,13.8085107]
[1769879494034,3.98912788,2435.4,2431.2,2.59970847]
[1769879494240,2.59970847,2436.2,2431.2,2.59970847]
[1769879494241,3.98912788,2435.0,2431.2,2.59970847]
[1769879494441,3.98912788,2433.7,2430.4,2.59970847]
[1769879494637,3.98912788,2433.6,2429.6,2.59970847]
[1769879494833,4.63993641,2433.6,2429.6,2.59970847]
[1769879495033,3.98912788,2433.0,2429.6,2.60384169]
[1769879495340,3.98912788,2431.7,2429.6,0.00413322]
[1769879495535,3.99416453,2431.7,2429.6,0.00413322]
[1769879495739,10.17581482,2431.6,2428.7,3.67574648]
[1769879495939,1.92684953,2431.6,2428.7,3.67574648]
[1769879496140,0.00503665,2431.7,2428.7,3.67574648]
[1769879496341,1.92684953,2431.6,2428.7,3.67574648]
[1769879496639,0.00503665,2431.7,2428.7,3.67955639]
[1769879497041,4.05085556,2434.0,2429.1,3.99629325]
[1769879497348,4.05085556,2433.8,2429.1,3.99629325]
[1769879497541,4.61771042,2433.9,2430.1,3.99629325]
[1769879497842,4.23691176,2433.7,2430.1,3.99629325]
[1769879498147,0.00333718,2433.7,2430.1,3.99629325]
[1769879498345,3.60037637,2433.6,2430.1,3.99629325]
[1769879498537,1.92684953,2433.6,2430.1,3.99629325]
[1769879498839,4.05085556,2432.7,2430.1,3.99629325]
[1769879499040,4.05085556,2432.0,2429.3,3.99629325]
[1769879499248,4.05085556,2431.8,2429.3,3.99629325]
[1769879499541,4.05085556,2431.8,2428.7,0.01461976]
[1769879499542,4.05085556,2431.6,2428.7,0.01461976]
[1769879499741,1.58216087,2431.7,2428.7,0.01461976]
[1769879499742,4.05085556,2430.7,2428.7,0.01461976]
[1769879500042,4.05085556,2429.5,2426.1,3.99629325]
[1769879500242,8.43490908,2430.6,2424.6,5.04459718]
[1769879500243,4.05085556,2428.8,2425.3,3.99629325]
[1769879500543,4.05085556,2428.5,2424.4,3.99629325]
[1769879500737,8.40857496,2428.7,2424.4,3.99629325]
[1769879500738,4.05085556,2428.4,2424.4,3.99629325]
[1769879500940,4.05085556,2426.6,2424.4,0.00318097]
[1769879501138,0.00503696,2426.6,2424.4,3.99947422]
[1769879501340,3.85936678,2426.1,2424.4,0.00318097]
[1769879501541,6.63842449,2426.5,2424.4,0.00318097]
[1769879501542,3.85936678,2426.4,2424.4,0.00318097]
[1769879501748,0.00503696,2426.6,2422.5,6.941]
[1769879501749,3.85936678,2425.9,2422.5,6.941]
[1769879501944,3.85936678,2424.8,2422.5,6.941]
[1769879502145,4.71049888,2425.8,2422.6,3.91704711]
[1769879502347,3.85936678,2424.3,2418.0,15.18324904]
[1769879502645,3.85936678,2419.1,2414.0,3.91704711]
[1769879502839,3.85936678,2418.9,2414.6,3.91704711]
[1769879503345,3.85936678,2418.1,2413.7,6.55364429]
[1769879503550,3.85936678,2418.1,2414.1,3.91704711]
[1769879503749,3.85936678,2417.9,2414.1,3.9212231]
[1769879503950,3.85936678,2416.8,2414.1,0.00417599]
[1769879504149,1.99641388,2416.8,2414.1,3.9212231]
[1769879504351,0.90101051,2416.7,2414.1,0.00417599]
[1769879504646,0.00501658,2418.1,2414.3,3.91704711]
[1769879504847,3.703,2422.5,2416.2,3.91704711]
[1769879505048,3.704,2423.2,2416.8,3.91704711]
[1769879505351,4.74867154,2420.5,2415.9,3.91704711]
[1769879505650,4.74867154,2420.5,2415.2,2.63659718]
[1769879505651,3.705,2423.7,2416.6,3.91704711]
[1769879505844,4.29926781,2420.4,2416.6,3.92123001]
[1769879506049,8.34149767,2417.6,2414.6,3.91704711]
[1769879506250,25.946,2420.3,2413.8,3.91704711]
[1769879506251,3.73694998,2418.2,2413.8,3.91704711]
[1769879506449,4.29926781,2417.5,2413.8,2.05409421]
[1769879506649,3.85936678,2416.4,2409.8,3.707]
[1769879506859,3.85936678,2415.1,2407.8,2.63659718]
[1769879507045,3.85936678,2413.7,2406.2,19.03072864]
[1769879507353,4.38098278,2415.0,2411.0,2.63659718]
[1769879507548,0.00423045,2415.1,2411.1,32.086]
[1769879507746,3.85936678,2417.7,2411.1,32.086]
[1769879507747,3.85936678,2417.7,2413.2,2.63659718]
[1769879507944,3.85936678,2417.7,2413.3,2.63659718]
[1769879508246,3.85936678,2417.5,2413.3,2.63659718]
[1769879508451,3.85936678,2417.5,2412.1,3.91704711]
[1769879508646,3.85936678,2417.1,2412.1,3.92195864]
[1769879508956,3.85936678,2416.9,2412.1,3.92195864]
[1769879509152,3.85936678,2416.9,2412.5,3.91704711]
[1769879509452,3.85936678,2414.7,2406.2,13.8085107]
[1769879509652,3.85936678,2413.2,2407.8,2.63659718]
[1769879509844,3.85936678,2413.0,2407.8,2.63659718]
[1769879510045,3.85936678,2413.0,2407.0,3.713]
[1769879510247,3.713,2414.6,2405.2,5.25353103]
[1769879510248,3.85936678,2411.7,2405.2,5.25353103]
[1769879510445,3.85936678,2411.5,2406.1,2.63659718]
[1769879510648,3.85936678,2411.3,2406.1,2.63659718]
[1769879511045,0.72640121,2411.2,2407.6,3.91704711]
[1769879511246,0.00411247,2411.7,2408.9,3.91704711]
[1769879511447,4.55286154,2411.6,2408.1,3.91704711]
[1769879511653,3.85936678,2408.3,2404.6,2.63659718]
[1769879511848,3.85936678,2406.5,2401.9,2.63659718]
[1769879512153,26.018,2408.2,2400.0,10.0]
[1769879512154,3.85936678,2405.1,2400.2,2.63659718]
[1769879512353,3.85936678,2405.1,2401.5,2.63659718]
[1769879512547,0.00336553,2405.1,2402.8,2.63659718]
[1769879512748,3.85936678,2406.5,2403.8,2.63659718]
[1769879512949,4.48478436,2405.0,2403.8,2.63659718]
[1769879513148,3.85936678,2404.9,2401.3,2.63659718]
[1769879513354,3.85936678,2404.9,2400.0,12.63659718]
[1769879513550,3.85936678,2403.7,2400.0,12.63659718]
[1769879513856,0.00525359,2403.7,2400.0,10.00306967]
[1769879514054,0.00525359,2403.7,2397.7,3.91704711]
[1769879514055,3.85936678,2402.2,2397.7,3.91704711]
[1769879514253,3.85936678,2402.2,2397.5,2.63659718]
[1769879514254,3.85936678,2402.2,2396.6,3.91704711]
[1769879514448,3.85936678,2402.0,2396.6,3.91704711]
[1769879514752,3.85936678,2402.0,2396.7,2.04574294]
[1769879514945,3.85936678,2401.8,2392.2,26.065]
[1769879515145,1.99312197,2401.8,2395.0,3.91704711]
[1769879515348,2.63659718,2403.1,2394.3,3.9213274]
[1769879515551,0.40399332,2405.8,2395.7,3.91704711]
[1769879515552,3.12838273,2401.7,2395.7,3.91704711]
[1769879515756,4.47390743,2401.8,2395.7,3.91704711]
[1769879515955,1.039,2403.0,2396.2,3.91704711]
[1769879515956,3.1284753,2401.6,2396.2,3.91704711]
[1769879516147,3.1284753,2401.6,2393.5,0.41233235]
[1769879516148,3.1284753,2401.6,2398.0,3.91704711]
[1769879516348,0.00528951,2401.6,2399.4,3.91704711]
[1769879516555,2.69684058,2406.3,2401.4,3.91704711]
[1769879516754,2.69684058,2406.3,2393.5,0.41233235]
[1769879516755,3.85936678,2406.2,2394.5,5.27256252]
[1769879516956,3.85936678,2402.3,2393.5,0.41233235]
[1769879517260,3.85936678,2398.9,2386.6,22.95968463]
[1769879517449,3.85936678,2398.9,2389.5,26.101]
[1769879517653,1.98588613,2398.9,2389.6,3.91704711]
[1769879517854,1.17665861,2398.8,2389.6,3.92062902]
[1769879518158,2.69684058,2400.5,2390.0,3.91704711]
[1769879518356,26.124,2400.8,2390.0,3.91704711]
[1769879518560,2.69684058,2399.3,2390.0,3.91704711]
[1769879518754,4.67909564,2400.7,2390.0,3.91704711]
[1769879518954,26.132,2402.9,2390.0,3.91704711]
[1769879519150,2.69684058,2398.3,2390.0,3.91704711]
[1769879519359,2.69684058,2397.2,2389.6,0.00358191]
[1769879519556,3.85936678,2397.1,2389.6,0.00358191]
[1769879519750,3.85936678,2395.8,2389.6,3.92062902]
[1769879519954,3.86256163,2395.8,2389.6,3.92062902]
[1769879520256,0.81318079,2398.3,2389.6,3.92062902]
[1769879520257,4.49618987,2395.7,2389.6,3.92062902]
[1769879520452,0.81318079,2398.3,2389.6,3.92062902]
[1769879520453,2.69684058,2402.3,2389.6,3.92062902]
[1769879520755,4.50194306,2398.2,2391.2,3.91704711]
[1769879520956,4.66011246,2400.5,2392.4,3.91704711]
[1769879521156,4.66011246,2400.5,2389.7,26.165]
[1769879521157,2.70121849,2405.3,2396.9,3.91704711]
[1769879521358,4.66011246,2400.4,2397.2,3.91704711]
[1769879521554,2.70121849,2407.7,2397.2,3.91704711]
[1769879521757,26.172,2413.0,2401.6,0.22137746]
[1769879522062,3.36333428,2409.7,2404.1,0.22137746]
[1769879522364,2.48759478,2409.8,2404.1,0.22137746]
[1769879522556,0.00497197,2409.8,2406.5,3.91704711]
[1769879522759,2.70121849,2416.9,2407.9,3.91704711]
[1769879522958,2.70121849,2419.2,2409.3,3.91704711]
[1769879523258,0.1227341,2420.9,2409.3,3.91704711]
[1769879523259,4.39877469,2415.1,2409.3,3.91704711]
[1769879523556,2.70121849,2419.0,2409.3,3.91704711]
[1769879523557,4.39877469,2415.0,2409.3,3.91704711]
[1769879523759,4.39877469,2415.0,2410.7,3.91704711]
[1769879523961,2.02982443,2420.8,2410.7,3.91704711]
[1769879523962,4.77746151,2416.7,2410.7,3.91704711]
[1769879524161,2.70121849,2420.4,2411.5,3.91704711]
[1769879524460,3.85936678,2416.5,2411.5,3.91704711]